[Event "German Bundesliga 2024-25"]
[Site "Germany"]
[Date "2024.12.01"]
[Round "4.7"]
[White "Smeets, Jan"]
[Black "Zwirs, Nico"]
[Result "1-0"]
[Annotator "RC"]
[ECO "B51"]
[WhiteElo "2550"]
[BlackElo "2480"]
[PlyCount "143"]
[EventDate "2024.09.27"]
[EventType "team-tourn"]
[EventCountry "GER"]
[SourceTitle "playchess.com"]
[Source "ChessBase"]
[SourceQuality "1"]
[WhiteTeam "SG Solingen"]
[BlackTeam "Hamburg"]
[TimeControl "40/5400+30:1800+30"]

1. e4 {[%emt 0:00:03]} c5 {[%emt 0:00:07]} 2. Nf3 {[%emt 0:00:05]} d6 {[%emt 0:00:07]} 3. Bb5+ {[%emt 0:00:10]} Nd7 {[%emt 0:00:14]} 4. a4 {[%emt 0:00:19]} Ngf6 {[%emt 0:00:47]} 5. Nc3 {[%emt 0:00:15]} a6 {[%emt 0:00:51]} 6. Be2 {[%emt 0:00:27]} b6 {[%emt 0:00:34]} 7. d4 {[%emt 0:00:26]} cxd4 {[%emt 0:00:10]} 8. Qxd4 {[%emt 0:00:05]} Bb7 {[%emt 0:00:16]} 9. Be3 {[%emt 0:00:12]} e6 {[%emt 0:03:54]} 10. O-O {[%emt 0:02:21]} Qc7 {[%emt 0:01:45]} 11. Rfd1 {[%emt 0:00:50]} Ng4 {[%emt 0:03:40]} 12. Bg5 {[%emt 0:05:03]} h6 {[%emt 0:00:25]} 13. Bh4 {[%emt 0:01:00]} Nge5 {[%emt 0:00:16]} 14. Qe3 {[%emt 0:24:19]} Ng6 {[%emt 0:00:33]} 15. Bg3 {[%emt 0:01:53]} Be7 {[%emt 0:00:20]} 16. Rd2 {[%emt 0:10:48]} O-O {[%emt 0:02:48]} 17. Rad1 {[%emt 0:01:18]} e5 {[%emt 0:02:42]} 18. Re1 {[%emt 0:21:18]} Rfe8 {[%emt 0:16:07]} 19. Rdd1 {[%emt 0:12:59]} Rac8 {[%emt 0:24:04]} 20. Bf1 {[%emt 0:04:54]} Qb8 {[%emt 0:18:18]} 21. b3 {[%emt 0:02:05]} Nf6 {[%emt 0:15:13]} 22. Bc4 {[%emt 0:01:03]} Qc7 {[%emt 0:02:48]} 23. Nh4 {[%emt 0:03:57]} Nxh4 {[%emt 0:03:49]} 24. Bxh4 {[%emt 0:00:01]} Ng4 {[%emt 0:01:38]} 25. Qf3 {[%emt 0:01:00]} Bxh4 {[%emt 0:00:03]} 26. Qxg4 {[%emt 0:00:03]} Be7 {[%emt 0:00:45]} 27. Rd3 {[%emt 0:01:49]} Bf8 {[%emt 0:00:45]} 28. h4 {[%emt 0:01:05]} Qd8 {[%emt 0:00:56]} 29. Ree3 {[%emt 0:01:07]} Rxc4 {[%emt 0:00:22]} 30. bxc4 {[%emt 0:00:05]} Bc8 {[%emt 0:00:20]} 31. Qg3 {[%emt 0:02:06]} Be7 {[%emt 0:00:06]} 32. h5 {[%emt 0:00:06]} Bg5 {[%emt 0:00:17]} 33. Re1 {[%emt 0:00:23]} Qc7 {[%emt 0:00:41]} 34. Red1 {[%emt 0:01:56]} Qxc4 {[%emt 0:00:54]} 35. Rxd6 {[%emt 0:00:10]} b5 {[%emt 0:00:45]} 36. axb5 {[%emt 0:00:31]} axb5 {[%emt 0:00:00]} 37. Qd3 {[%emt 0:00:10]} Bg4 {[%emt 0:00:15]} 38. Qxc4 {[%emt 0:00:36]} bxc4 {[%emt 0:00:01]} 39. Rb1 {[%emt 0:01:19]} Rc8 {[%emt 0:01:18]} 40. Rdb6 {[%emt 0:00:33]} Kh7 {[%emt 0:00:58]} 41. Rb8 {[%emt 0:03:31]} Rc6 {[%emt 0:04:47]} 42. R1b6 {[%emt 0:01:11]} Rc5 {[%emt 0:02:34]} 43. Rb5 {[%emt 0:02:55]} Rc6 {[%emt 0:00:43]} 44. R8b6 {[%emt 0:03:55]} Rc8 {[%emt 0:01:00]} 45. Rxe5 {[%emt 0:07:16]} Bf6 {[%emt 0:07:39]} 46. Rxf6 {[%emt 0:00:06]} gxf6 {[%emt 0:00:06]} 47. Ra5 {[%emt 0:03:13]} Rd8 {[%emt 0:03:35]} 48. Nd5 {[%emt 0:01:39]} Kg7 {[%emt 0:00:39]} 49. Ne3 {[%emt 0:01:16]} Be6 {[%emt 0:00:38]} 50. Kf1 {[%emt 0:00:20]} Rb8 {[%emt 0:10:20]} 51. Ke2 {[%emt 0:00:15]} Rb1 {[%emt 0:00:29]} 52. Rc5 {[%emt 0:03:05]} Rh1 {[%emt 0:00:32]} 53. Kd2 {[%emt 0:07:06]} Rh4 {[%emt 0:01:23]} 54. f3 {[%emt 0:00:12]} Kf8 {[%emt 0:01:13]} 55. Kc3 {[%emt 0:00:06]} Rh2 {[%emt 0:00:36]} 56. Kd4 {[%emt 0:00:36]} Ke7 {[%emt 0:01:08]} 57. Ra5 {[%emt 0:01:33]} Rh4 {[%emt 0:00:52]} 58. c3 {[%emt 0:00:41]} Rh2 {[%emt 0:00:32]} 59. f4 {[%emt 0:01:15]} Kf8 {[%emt 0:00:45]} 60. f5 {[%emt 0:00:32]} Bd7 {[%emt 0:00:01]} 61. Ra7 {[%emt 0:00:19]} Bc6 {[%emt 0:00:36]} 62. Ra6 {[%emt 0:00:13]} Be8 {[%emt 0:00:37]} 63. Rxf6 {[%emt 0:00:31]} Rxh5 {[%emt 0:00:08]} 64. Kxc4 {[%emt 0:00:26]} Rh1 {[%emt 0:00:34]} 65. Rb6 {[%emt 0:00:23]} Kg7 {[%emt 0:00:45]} 66. Kd4 {[%emt 0:00:28]} Ra1 {[%emt 0:00:45]} 67. c4 {[%emt 0:00:11]} Ra2 {[%emt 0:00:36]} 68. g4 {[%emt 0:00:35]} Rd2+ {[%emt 0:00:20]} 69. Kc3 {[%emt 0:00:07]} Ra2 {[%emt 0:00:36]} 70. c5 {[%emt 0:00:29]} Ra4 {[%emt 0:00:25]} 71. Nc4 {[%emt 0:00:21]} f6 {[%emt 0:00:42]} 72. Nd6 {[%emt 0:00:18]} 1-0

[Event "German Bundesliga 2024-25"]
[Site "Germany"]
[Date "2024.12.01"]
[Round "4.7"]
[White "Lokander, Martin"]
[Black "Jovanovic, Zoran"]
[Result "1/2-1/2"]
[Annotator "TA"]
[ECO "A61"]
[WhiteElo "2467"]
[BlackElo "2520"]
[PlyCount "41"]
[EventDate "2024.09.27"]
[EventType "team-tourn"]
[EventCountry "GER"]
[SourceTitle "playchess.com"]
[Source "ChessBase"]
[SourceQuality "1"]
[WhiteTeam "Bayern Muenchen"]
[BlackTeam "Kirchweyhe"]
[TimeControl "40/5400+30:1800+30"]

{[%evp 19,41,38,60,52,56,37,47,32,30,36,22,26,36,0,20,0,0,13,34,32,39,35,46,34]} 1. d4 {[%emt 0:00:04]} d6 {[%emt 0:00:06]} 2. e4 {[%emt 0:01:04]} Nf6 {[%emt 0:00:14]} 3. Nc3 {[%emt 0:00:11]} e5 {[%emt 0:00:05]} 4. Nf3 {[%emt 0:00:16]} exd4 {[%emt 0:02:47]} 5. Nxd4 {[%emt 0:00:19]} Be7 {[%emt 0:00:05]} 6. Bf4 {[%emt 0:00:47]} O-O {[%emt 0:01:56]} 7. Qd2 {[%emt 0:00:05]} Nc6 {[%emt 0:02:02]} 8. O-O-O {[%emt 0:01:08]} Nxd4 {[%emt 0:00:04]} 9. Qxd4 {[%emt 0:00:04]} Be6 {[%emt 0:00:08]} 10. f3 {[%emt 0:12:45]} a6 {[%emt 0:02:35]} 11. g4 {[%emt 0:02:05]} b5 {[%emt 0:02:01]} 12. h4 {[%emt 0:20:36]} c5 {[%emt 0:03:38]} 13. Qf2 {[%emt 0:01:57]} b4 {[%emt 0:05:18]} 14. Nd5 {[%emt 0:03:17]} Nxd5 {[%emt 0:00:34]} 15. exd5 {[%emt 0:00:05]} Bd7 {[%emt 0:00:02]} 16. Qg3 {[%emt 0:09:27]} Bb5 {[%emt 0:07:32]} 17. g5 {[%emt 0:01:44]} c4 {[%emt 0:10:45]} 18. Kb1 {[%emt 0:06:07]} b3 {[%emt 0:12:31]} 19. cxb3 {[%emt 0:01:01] White is slightly better.} cxb3 {[%emt 0:00:04]} 20. axb3 {[%emt 0:03:56]} Bxf1 {[%emt 0:06:13]} 21. Rhxf1 {[%emt 0:00:25] Weighted Error Value: White=0.07 (flawless) /Black=0.04 (flawless) .  Inaccurate:     	White=1     	---        OK:         	White=5     	Black=6} 1/2-1/2

[Event "German Bundesliga 2024-25"]
[Site "Germany"]
[Date "2024.12.01"]
[Round "4.7"]
[White "Winterberg, Lukas"]
[Black "Krause, Jonah"]
[Result "1/2-1/2"]
[Annotator "TA"]
[ECO "D85"]
[WhiteElo "2410"]
[BlackElo "2361"]
[PlyCount "101"]
[EventDate "2024.09.27"]
[EventType "team-tourn"]
[EventCountry "GER"]
[SourceTitle "playchess.com"]
[Source "ChessBase"]
[SourceQuality "1"]
[WhiteTeam "Heimbach-Weis-Neuwied"]
[BlackTeam "St. Pauli"]
[TimeControl "40/5400+30:1800+30"]

{[%evp 15,101,-4,4,0,0,0,5,0,10,0,0,0,19,13,16,0,2,0,12,0,10,0,27,27,71,86,82,82,89,42,44,50,72,33,26,30,26,32,31,-4,15,16,26,-16,-14,-7,8,6,73,93,103,103,87,27,31,0,0,0,0,0,0,0,123,9,9,9,9,9,9,9,9,9,9,9,9,8,8,8,8,0,8,0,0,-8,-8,-8,-8,-8]} 1. d4 {[%emt 0:00:03]} Nf6 {[%emt 0:00:23]} 2. Nf3 {[%emt 0:00:11]} g6 {[%emt 0:00:06]} 3. c4 {[%emt 0:00:14]} Bg7 {[%emt 0:00:06]} 4. Nc3 {[%emt 0:00:14]} d5 {[%emt 0:00:04]} 5. cxd5 {[%emt 0:00:14]} Nxd5 {[%emt 0:00:07]} 6. e4 {[%emt 0:00:18]} Nxc3 {[%emt 0:00:06]} 7. bxc3 {[%emt 0:00:12]} c5 {[%emt 0:00:06]} 8. Bb5+ {[%emt 0:00:15]} Nc6 {[%emt 0:00:07][%cal Rc5d4,Bb8c6,Bc6e5,Be5f3][%mdl 32]} 9. Rb1 {[%emt 0:00:17]} (9. dxc5 Bxc3+ 10. Bd2 Bxd2+ (10... Bxa1 11. Qxa1 f6 12. O-O $11) 11. Qxd2 O-O) 9... O-O $1 {[%emt 0:00:08]} 10. d5 {[%emt 0:00:08]} Ne5 {[%emt 0:00:06]} 11. O-O {[%emt 0:00:16]} a6 {[%emt 0:00:10]} 12. Be2 {[%emt 0:00:10]} Nxf3+ {[%emt 0:00:18]} 13. Bxf3 {[%emt 0:00:02]} b5 {[%emt 0:00:13]} 14. Be3 {[%emt 0:00:21]} Qd6 {[%emt 0:00:06]} 15. Qc1 {[%emt 0:00:16]} Bd7 {[%emt 0:06:34]} 16. h3 {[%emt 0:00:44]} h5 {[%emt 0:13:18]} 17. Bf4 {[%emt 0:08:32]} Be5 {[%emt 0:19:26]} 18. Bh6 {[%emt 0:00:56]} a5 {[%emt 0:05:00][%cal Ba6a5,Ba5b4][%mdl 32]} 19. Bxf8 {[%emt 0:02:35]} Rxf8 {[%emt 0:02:09]} 20. Be2 {[%emt 0:00:59][%cal Of2f4]} b4 {[%emt 0:03:32]} 21. cxb4 {[%emt 0:00:59]} axb4 {[%emt 0:00:17]} 22. a3 {[%emt 0:01:19]} (22. f4 $16 Bd4+ 23. Kh1) 22... Bf4 $14 {[%emt 0:05:47] A strong pair of Bishops.} 23. Qb2 {[%emt 0:02:08][%cal Ra3b4]} Rb8 {[%emt 0:02:03]} 24. Qb3 {[%emt 0:11:50]} h4 {[%emt 0:03:49]} 25. axb4 {[%emt 0:02:11]} cxb4 {[%emt 0:00:53]} 26. Bg4 {[%emt 0:23:19]} Be8 {[%emt 0:04:53]} 27. Rfd1 {[%emt 0:02:05]} Bh2+ {[%emt 0:04:52][%cal Bf4h2,Bh2e5,Be5d4][%mdl 32]} 28. Kh1 {[%emt 0:00:17]} Be5 $1 {[%emt 0:00:08] Repels Rd4} 29. Rdc1 {[%emt 0:05:59]} Qf6 {[%emt 0:02:15]} 30. Qf3 $1 {[%emt 0:06:30]} Qxf3 {[%emt 0:01:20]} 31. gxf3 {[%emt 0:04:44][%cal Bg2f3,Bf3f4][%mdl 32]} (31. Bxf3 b3 $15) 31... b3 {[%emt 0:05:34] [#]} (31... e6 $11) 32. f4 $1 $16 {[%emt 0:04:41]} Bd4 {[%emt 0:12:10][%cal Ob3b2]} (32... Bxf4 33. Rc8 $16) 33. Rc4 {[%emt 0:01:57]} Bxf2 {[%emt 0:00:32] [#]} 34. Kg2 {[%emt 0:01:04]} (34. Rc8 $1 $16 {[%cal Rc8b8]} Rxc8 35. Bxc8) 34... Bg3 $1 $11 {[%emt 0:03:26]} 35. e5 {[%emt 0:08:52]} (35. Rc8 $5 Rxc8 36. Bxc8 $16) 35... b2 {[%emt 0:04:03]} 36. d6 {[%emt 0:04:53]} exd6 {[%emt 0:00:01]} 37. exd6 {[%emt 0:00:13]} f5 {[%emt 0:01:11]} 38. Bf3 {[%emt 0:00:58]} Bf7 {[%emt 0:00:41] [#]} (38... Kf8 $11 {keeps the balance.}) 39. Ra4 {[%emt 0:06:22]} (39. Rd4 $1 $16 {aiming for d7.} Ba2 40. Bd5+ Bxd5+ 41. Rxd5 Bxf4 42. d7) 39... Be6 {[%emt 0:01:01]} 40. Ra8 {[%emt 0:00:51] Really sharp!} Rxa8 $1 {[%emt 0:00:27]} 41. Bxa8 {[%emt 0:30:03]} Bxf4 {[%emt 0:31:31] and ...Bc1 should not be overlooked} 42. Rxb2 {[%emt 0:00:15][%mdl 4096] Endgame KRB-KB} Kf7 $1 {[%emt 0:00:00]} (42... Bxd6 $2 {perishes.} 43. Rb6 Kf7 44. Rxd6 $18) 43. Rb7+ {[%emt 0:00:00]} Kf6 {[%emt 0:00:00]} 44. Rh7 {[%emt 0:00:00]} Bxd6 {[%emt 0:00:00]} 45. Rxh4 {[%emt 0:00:00]} g5 {[%emt 0:00:00]} 46. Rh6+ {[%emt 0:00:00]} Ke5 {[%emt 0:00:00]} 47. Rg6 {[%emt 0:00:00]} g4 {[%emt 0:00:00]} 48. hxg4 {[%emt 0:00:00]} fxg4 {[%emt 0:00:00]} 49. Rxe6+ {[%emt 0:00:00]} Kxe6 {[%emt 0:00:00]} 50. Bf3 {[%emt 0:00:00]} gxf3+ {[%emt 0:00:00]} 51. Kxf3 {[%emt 0:00:10]} 1/2-1/2

[Event "German Bundesliga 2024-25"]
[Site "Germany"]
[Date "2024.12.01"]
[Round "4.8"]
[White "Kovacevic, Aleksandar"]
[Black "Johansson, Linus"]
[Result "1-0"]
[Annotator "TA"]
[ECO "B90"]
[WhiteElo "2447"]
[BlackElo "2412"]
[PlyCount "107"]
[EventDate "2024.09.27"]
[EventType "team-tourn"]
[EventCountry "GER"]
[SourceTitle "playchess.com"]
[Source "ChessBase"]
[SourceQuality "1"]
[WhiteTeam "Kirchweyhe"]
[BlackTeam "Bayern Muenchen"]
[TimeControl "40/5400+30:1800+30"]

{[%evp 18,107,7,11,31,22,48,30,40,6,0,-21,-13,-18,25,16,25,23,29,35,30,17,31,31,36,36,46,25,33,10,34,7,51,43,88,65,71,48,52,53,57,23,32,-26,10,0,25,38,27,8,29,-6,0,0,0,-12,-4,-56,-54,-64,24,33,61,55,366,360,374,369,391,386,474,479,484,469,546,510,633,604,527,449,538,521,601,610,787,786,1029,818,816,790,801,768]} 1. e4 {[%emt 0:00:14]} c5 {[%emt 0:00:03]} 2. Nf3 {[%emt 0:00:08]} d6 {[%emt 0:00:04]} 3. d4 {[%emt 0:00:29]} cxd4 {[%emt 0:00:04]} 4. Nxd4 {[%emt 0:00:06]} Nf6 {[%emt 0:00:05]} 5. Nc3 {[%emt 0:00:06]} a6 {[%emt 0:00:03]} 6. Be3 {[%emt 0:00:27]} e5 {[%emt 0:00:06]} 7. Nf3 {[%emt 0:00:21][%cal Bd4f3,Bf3h4,Bh4f5][%mdl 32]} Be7 {[%emt 0:01:20]} 8. Bc4 {[%emt 0:00:32][%cal Bf1c4,Bc4b3,Bb3d5][%mdl 32]} Be6 {[%emt 0:04:08]} 9. Bb3 {[%emt 0:00:55]} O-O {[%emt 0:01:42]} 10. O-O {[%emt 0:00:06]} h6 {[%emt 0:15:42]} 11. Nh4 {[%emt 0:11:44]} Nbd7 {[%emt 0:13:43]} 12. Nf5 {[%emt 0:11:16]} Nc5 {[%emt 0:02:21]} 13. Bd5 {[%emt 0:00:55]} Rc8 {[%emt 0:05:14]} 14. f3 {[%emt 0:19:12]} b5 {[%emt 0:05:43]} 15. a3 {[%emt 0:00:54]} Na4 {[%emt 0:07:57]} 16. Nxa4 {[%emt 0:06:07]} bxa4 {[%emt 0:00:16]} 17. Bxe6 {[%emt 0:06:55]} fxe6 {[%emt 0:00:07]} 18. Nxe7+ {[%emt 0:00:18]} Qxe7 {[%emt 0:00:07]} 19. c3 {[%emt 0:00:12]} Rc4 {[%emt 0:01:57]} 20. Qe2 {[%emt 0:03:12]} Rfc8 {[%emt 0:02:37]} 21. Rad1 {[%emt 0:00:30]} R4c6 {[%emt 0:02:24]} 22. Rd3 {[%emt 0:00:46]} Qb7 {[%emt 0:01:32]} 23. Rfd1 {[%emt 0:00:50]} Qb5 {[%emt 0:00:45]} 24. R1d2 {[%emt 0:02:25][%cal Oe2f2]} Ne8 {[%emt 0:07:27]} 25. h4 {[%emt 0:14:03]} Qb7 {[%emt 0:01:27]} 26. Qe1 {[%emt 0:02:39]} Kh7 {[%emt 0:01:15]} 27. Qg3 {[%emt 0:06:48]} Qf7 {[%emt 0:00:35]} 28. Qh3 {[%emt 0:00:43]} Rb8 {[%emt 0:00:50]} 29. Rf2 {[%emt 0:01:43]} Rb5 {[%emt 0:01:27]} 30. Rc2 {[%emt 0:03:13]} (30. Rdd2 $14) 30... Rc4 {[%emt 0:06:04]} 31. Qg3 {[%emt 0:00:08]} Qg6 {[%emt 0:03:23]} 32. Qxg6+ {[%emt 0:02:25]} Kxg6 {[%emt 0:00:02]} 33. Kf1 {[%emt 0:00:29]} Kf7 {[%emt 0:01:35]} 34. Ke1 {[%emt 0:00:38]} d5 {[%emt 0:01:47]} 35. exd5 {[%emt 0:01:25]} exd5 {[%emt 0:01:08]} 36. Rcd2 {[%emt 0:01:08]} Ke6 {[%emt 0:04:01]} ({Much weaker is} 36... Rxh4 37. Rxd5 Rxd5 38. Rxd5 $14) 37. Bf2 {[%emt 0:00:09]} (37. g4 $11) 37... Nd6 $15 {[%emt 0:03:22] Threatens to win with ...Rc7.} 38. Re2 {[%emt 0:00:07]} Nf7 {[%emt 0:01:06]} (38... Rf4 $1 $15 39. g4 Nc4) 39. h5 {[%emt 0:01:05]} Rc6 {[%emt 0:04:36]} 40. f4 {[%emt 0:01:10]} e4 $2 {[%emt 0:00:53][%mdl 8192]} (40... Kf5 $1 $14) 41. Rg3 $18 {[%emt 0:32:10]} Rc7 {[%emt 0:09:33]} 42. Rxg7 {[%emt 0:00:00]} Rcb7 {[%emt 0:00:31][%cal Of7e5] [#]} 43. c4 $1 {[%emt 0:00:00][%mdl 512]} Rb3 {[%emt 0:05:43][%cal Of7e5]} (43... dxc4 44. Rxe4+) 44. Rg6+ {[%emt 0:00:00]} Kd7 {[%emt 0:03:38]} 45. c5 {[%emt 0:00:00] aiming for c6+.} ({Much less strong is} 45. cxd5 Rxb2 46. Rxe4 (46. Rxa6 Rb1+ 47. Kd2 R1b2+ 48. Ke1 Rb1+ 49. Kd2 R1b2+ 50. Kd1 Rb1+ 51. Kd2 $11) 46... Rc7 $18) (45. Rxa6 dxc4 46. Bd4 (46. Rxe4 Nd6 $18) (46. Rxa4 Rxb2 47. Rxb2 Rxb2 $18) 46... Rd3 $18) 45... Nd8 {[%emt 0:00:36]} 46. Rd2 {[%emt 0:00:00]} Rxb2 {[%emt 0:04:42]} 47. Rxd5+ {[%emt 0:00:00]} Kc8 {[%emt 0:00:13]} 48. Rxa6 {[%emt 0:00:00]} Kc7 {[%emt 0:03:41]} 49. Rxa4 {[%emt 0:00:27]} Ra2 {[%emt 0:00:36]} 50. Rd2 {[%emt 0:01:17]} (50. Rxe4 Rb1+ 51. Rd1 Rxd1+ 52. Kxd1 Rxf2 $11) 50... Ra1+ {[%emt 0:01:20]} 51. Ke2 {[%emt 0:00:08]} Nc6 {[%emt 0:00:14]} 52. Rxe4 {[%emt 0:00:13]} Rxa3 {[%emt 0:00:08]} 53. Re6 {[%emt 0:00:14]} Rb4 {[%emt 0:00:18]} 54. g3 {[%emt 0:00:22]} 1-0

[Event "German Bundesliga 2024-25"]
[Site "Germany"]
[Date "2024.12.01"]
[Round "4.8"]
[White "Heinemann, Thies"]
[Black "Nikolic, Predrag"]
[Result "1/2-1/2"]
[Annotator "TA"]
[ECO "C03"]
[WhiteElo "2417"]
[BlackElo "2548"]
[PlyCount "103"]
[EventDate "2024.09.27"]
[EventType "team-tourn"]
[EventCountry "GER"]
[SourceTitle "playchess.com"]
[Source "ChessBase"]
[SourceQuality "1"]
[WhiteTeam "Hamburg"]
[BlackTeam "SG Solingen"]
[TimeControl "40/5400+30:1800+30"]

{[%evp 9,103,30,31,8,22,18,29,0,61,33,47,33,56,16,79,44,62,37,45,43,49,50,56,26,19,18,23,17,19,19,37,38,33,15,22,20,32,33,30,31,38,41,49,45,65,50,81,78,83,68,67,76,76,65,48,43,48,43,43,43,43,43,43,43,43,42,42,42,42,42,42,42,61,60,60,60,60,60,60,60,61,60,60,60,137,137,137,97,173,173,173,173,173,173,173,173]} 1. e4 {[%emt 0:00:03]} e6 {[%emt 0:00:08]} 2. d4 {[%emt 0:00:21]} d5 {[%emt 0:00:06]} 3. Nd2 {[%emt 0:00:09]} a6 {[%emt 0:00:05]} 4. Bd3 {[%emt 0:00:42]} c5 {[%emt 0:00:22]} 5. dxc5 {[%emt 0:00:24]} Bxc5 {[%emt 0:00:33]} 6. exd5 {[%emt 0:01:59]} Qxd5 {[%emt 0:02:03]} 7. Ngf3 {[%emt 0:02:19]} Nf6 {[%emt 0:00:42]} 8. Qe2 {[%emt 0:02:24] White has an edge.} Nc6 {[%emt 0:01:56]} ({Black should play} 8... Nbd7 $11) 9. Ne4 {[%emt 0:07:38]} Be7 {[%emt 0:00:08]} 10. c3 {[%emt 0:04:02]} Bd7 {[%emt 0:07:28]} 11. O-O {[%emt 0:07:08]} Qa5 {[%emt 0:03:16]} (11... Ne5 $11 {keeps the balance.} 12. Nxf6+ Bxf6) 12. Bd2 {[%emt 0:09:16]} Qc7 {[%emt 0:05:20]} 13. Nxf6+ {[%emt 0:07:11]} Bxf6 {[%emt 0:00:28]} 14. Rfe1 {[%emt 0:02:01]} h6 {[%emt 0:11:46]} 15. Rad1 {[%emt 0:05:42]} Ne7 {[%emt 0:01:40]} 16. Ne5 {[%emt 0:04:39]} Bxe5 {[%emt 0:02:32]} 17. Qxe5 {[%emt 0:01:07]} Qxe5 {[%emt 0:00:27]} 18. Rxe5 {[%emt 0:00:09]} O-O-O {[%emt 0:01:09]} 19. Bc2 {[%emt 0:05:47] Inhibits Ba4.} Bc6 {[%emt 0:00:46]} 20. Ree1 {[%emt 0:02:29]} b5 {[%emt 0:06:12]} 21. Be3 {[%emt 0:08:38]} Rxd1 {[%emt 0:03:17]} 22. Rxd1 {[%emt 0:00:35]} Nd5 {[%emt 0:01:19]} 23. Bc5 {[%emt 0:03:18]} Kb7 {[%emt 0:01:17]} 24. f3 {[%emt 0:02:23]} Re8 {[%emt 0:01:44]} 25. Kf2 {[%emt 0:01:23]} Nf6 {[%emt 0:10:35]} 26. Be3 {[%emt 0:05:42]} Bd5 {[%emt 0:03:48]} 27. a4 {[%emt 0:01:54]} e5 {[%emt 0:06:03]} 28. Ra1 {[%emt 0:03:05]} Ra8 {[%emt 0:02:03]} 29. axb5 {[%emt 0:00:54]} axb5 {[%emt 0:00:06]} 30. Rxa8 {[%emt 0:00:26]} Kxa8 $16 {[%emt 0:00:01][%mdl 4096] Endgame. KBB-KBN} 31. Bc5 {[%emt 0:01:10]} Nd7 $1 {[%emt 0:00:07] Wards off Bf8} 32. Bd6 {[%emt 0:00:42]} Kb7 {[%emt 0:00:29]} 33. Bf5 {[%emt 0:01:36]} Kc6 {[%emt 0:01:50]} 34. Bxd7+ {[%emt 0:01:21]} Kxd7 {[%emt 0:00:06]} 35. Bxe5 $14 {[%emt 0:03:12] KB-KB} g6 {[%emt 0:00:14]} 36. Ke3 {[%emt 0:01:16]} h5 {[%emt 0:01:30]} 37. h4 {[%emt 0:01:24]} Ke6 {[%emt 0:00:39]} 38. Kd4 {[%emt 0:01:37]} Bc4 {[%emt 0:00:14]} 39. Bc7 {[%emt 0:00:30]} Bf1 {[%emt 0:03:26]} 40. g3 {[%emt 0:01:01]} f5 {[%emt 0:03:45]} 41. Kc5 {[%emt 0:31:39]} Kd7 {[%emt 0:32:59]} 42. Be5 {[%emt 0:00:00]} Bc4 {[%emt 0:00:00]} 43. Bg7 {[%emt 0:00:00]} Kc7 {[%emt 0:00:00]} 44. Bh6 {[%emt 0:00:00]} Be2 {[%emt 0:00:00]} 45. Be3 {[%emt 0:00:00]} Bc4 {[%emt 0:00:00]} 46. f4 {[%emt 0:00:00]} Be2 {[%emt 0:00:00] [#]} (46... Kd7 $14) 47. Kd5 $1 $16 {[%emt 0:00:00]} Kd7 {[%emt 0:00:00]} 48. Ke5 {[%emt 0:00:00]} b4 {[%emt 0:00:00]} 49. cxb4 $18 {[%emt 0:00:00] White is clearly better.} Kc6 {[%emt 0:00:00]} 50. Kf6 {[%emt 0:00:00]} Kb5 {[%emt 0:00:00]} 51. Kxg6 {[%emt 0:00:00]} Bg4 {[%emt 0:00:00]} 52. Bd2 {[%emt 0:00:00] Weighted Error Value: White=0.07 (flawless) /Black=0.13 (very precise) .  Mistake:       	---       	Black=4      Inaccurate:     	White=4     	Black=1      OK:         	White=14    	Black=11     Best:        	---       	Black=2      Strong:       	White=1     	Black=1} 1/2-1/2

[Event "German Bundesliga 2024-25"]
[Site "Germany"]
[Date "2024.12.01"]
[Round "4.8"]
[White "Gasthofer, Alexander"]
[Black "Heimann, Andreas"]
[Result "1/2-1/2"]
[Annotator "TA"]
[ECO "D02"]
[WhiteElo "2388"]
[BlackElo "2553"]
[PlyCount "28"]
[EventDate "2024.09.27"]
[EventType "team-tourn"]
[EventCountry "GER"]
[SourceTitle "playchess.com"]
[Source "ChessBase"]
[SourceQuality "1"]
[WhiteTeam "Bad Mergentheim"]
[BlackTeam "Deizisau"]
[TimeControl "40/5400+30:1800+30"]

{[%evp 23,28,0,16,0,16,0,14]} 1. Nf3 {[%emt 0:00:05]} d5 {[%emt 0:00:02]} 2. g3 {[%emt 0:00:18]} g6 {[%emt 0:00:52]} 3. d4 {[%emt 0:01:28]} Bg7 {[%emt 0:00:05]} 4. Bg2 {[%emt 0:00:14]} Nf6 {[%emt 0:00:04]} 5. O-O {[%emt 0:01:03]} O-O {[%emt 0:00:05]} 6. c3 {[%emt 0:00:50]} c6 {[%emt 0:00:38]} 7. Nbd2 {[%emt 0:00:27]} Bf5 {[%emt 0:04:12]} 8. Nh4 {[%emt 0:03:42]} Be6 {[%emt 0:00:08]} 9. Re1 {[%emt 0:02:02]} Nbd7 {[%emt 0:00:09]} 10. Nhf3 {[%emt 0:03:36]} Bf5 {[%emt 0:00:14]} 11. Nh4 {[%emt 0:01:04]} Be6 {[%emt 0:00:07]} 12. Nhf3 {[%emt 0:00:07]} Bf5 {[%emt 0:00:02] The position is equal.} 13. Nh4 {[%emt 0:00:10]} Be6 {[%emt 0:00:05]} 14. Nhf3 {[%emt 0:01:03]} Bf5 {An uneventful encounter.   OK:         	---       	Black=2} 1/2-1/2